fUST/lending_fUST_20250616
["ID","MTS","AMOUNT","RATE_DAILY","PERIOD"]
[366081678,1750055433162,-500.0,0.00021917,4]
[366081679,1750055433172,-350.0,0.00021917,4]
[366081680,1750055433183,-460.0,0.00021917,4]
[366081681,1750055433193,-460.0,0.00021917,4]
[366081682,1750055433203,-460.0,0.00021917,4]
[366081683,1750055433212,-358.31261272,0.00021917,4]
[366081684,1750055433222,-412.84,0.00021917,4]
[366081685,1750055433233,-477.46230457,0.00021917,4]
[366081686,1750055433243,-467.76444803,0.00021917,4]
[366081687,1750055433253,-263.61026868,0.00021917,4]
[366081688,1750055433263,-440.58229194,0.00021917,4]
[366081689,1750055433273,-452.96441124,0.00021917,4]
[366081690,1750055433283,-460.0,0.00021917,4]
[366081691,1750055433293,-460.0,0.00021917,4]
[366081692,1750055433303,-460.0,0.00021917,4]
[366081693,1750055433313,-460.0,0.00021917,4]
[366081694,1750055433323,-437.454304,0.00021917,2]
[366081695,1750055433333,-437.454304,0.00021917,2]
[366081696,1750055433343,-208.09113101,0.00021917,4]
[366081697,1750055433353,-231.83217611,0.00021917,4]
[366081698,1750055433364,-474.98271925,0.00021917,4]
[366081699,1750055433374,-460.0,0.00021917,4]
[366081700,1750055433384,-460.0,0.00021917,4]
[366081701,1750055433394,-460.0,0.00021917,4]
[366081702,1750055433403,-460.0,0.00021917,4]
[366081703,1750055433414,-460.0,0.00021917,4]
[366081704,1750055433424,-365.26134269,0.00021917,4]
[366081705,1750055433434,-460.0,0.00021917,4]
[366081706,1750055433445,-479.11617992,0.00021917,4]
[366081707,1750055433454,-460.0,0.00021917,4]
[366081708,1750055433464,-488.60405922,0.00021917,4]
[366081709,1750055433474,-151.0,0.00021917,2]
[366081710,1750055433485,-202.11623292,0.00021918,2]
[366081711,1750055433495,-505.99461232,0.00021938,2]
[366081712,1750055433505,-430.4834714,0.00022003,6]
[366081713,1750055433518,-172.178682,0.00022004,7]
[366081714,1750055433528,-220.88381,0.00022004,7]
[366081715,1750055433538,-220.88381,0.00022004,7]
[366081716,1750055433548,-151.0,0.00022004,7]
[366081717,1750055433558,-152.14193,0.00022004,7]
[366081718,1750055433568,-151.0,0.00022004,7]
[366081719,1750055433578,-151.989116,0.00022004,7]
[366081720,1750055433588,-151.0,0.00022009,7]
[366081721,1750055433598,-151.0,0.00022009,7]
[366081722,1750055433608,-151.0,0.00022009,7]
[366081723,1750055433617,-151.0,0.00022009,7]
[366081724,1750055433628,-152.544244,0.00022009,7]
[366081725,1750055433638,-151.0,0.00022009,7]
[366081726,1750055433648,-151.0,0.00022009,7]
[366081727,1750055433658,-500.0,0.00022009,2]
[366081728,1750055433668,-335.0,0.00022012,2]
[366081729,1750055433678,-538.4143376,0.00022033,2]
[366081730,1750055433691,-505.54338163,0.00022033,2]
[366081731,1750055433702,-500.0,0.00022033,2]
[366081732,1750055433712,-500.0,0.00022033,2]
[366081733,1750055433723,-586.28987893,0.00022041,2]
[366081734,1750055433735,-500.0,0.00022041,2]
[366081735,1750055433745,-506.95888743,0.00022047,2]
[366081736,1750055433755,-335.0,0.00022058,2]
[366081737,1750055433766,-151.0,0.00022067,7]
[366081738,1750055433777,-420.0,0.00022079,2]
[366081739,1750055433787,-501.29579686,0.00022088,2]
[366081740,1750055433798,-430.4834714,0.00022107,6]
[366081741,1750055433808,-509.97005509,0.00022111,2]
[366081742,1750055433818,-500.0,0.00022129,2]
[366081743,1750055433829,-500.0,0.00022129,2]
[366081744,1750055433839,-500.0,0.00022129,2]
[366081745,1750055433849,-505.90908521,0.00022129,2]
[366081746,1750055433859,-516.12922554,0.00022133,2]
[366081747,1750055433869,-500.0,0.00022133,2]
[366081748,1750055433880,-460.0,0.00022191,4]
[366081749,1750055433889,-513.89068475,0.00022191,2]
[366081750,1750055433899,-445.80869005,0.00022191,4]
[366081751,1750055433909,-460.0,0.00022191,4]
[366081752,1750055433920,-460.0,0.00022191,2]
[366081753,1750055433930,-460.0,0.00022191,4]
[366081754,1750055433940,-460.0,0.00022191,4]
[366081755,1750055433950,-460.0,0.00022191,4]
[366081756,1750055433960,-460.0,0.00022191,4]
[366081757,1750055433970,-460.0,0.00022191,4]
[366081758,1750055433980,-460.0,0.00022191,4]
[366081759,1750055433990,-460.0,0.00022191,4]
[366081760,1750055434000,-460.0,0.00022191,4]
[366081761,1750055434011,-1394.239109,0.00022191,2]
[366081762,1750055434021,-1394.239109,0.00022191,2]
[366081763,1750055434031,-460.0,0.00022191,4]
[366081764,1750055434041,-296.43193493,0.00022191,4]
[366081765,1750055434051,-460.0,0.00022191,4]
[366081766,1750055434061,-460.0,0.00022191,4]
[366081767,1750055434072,-460.0,0.00022191,4]
[366081768,1750055434082,-460.0,0.00022191,4]
[366081769,1750055434092,-172.0,0.00022207,2]
[366081770,1750055434102,-430.4834714,0.0002221,6]
[366081771,1750055434256,-335.0,0.00022242,2]
[366081772,1750055434266,-430.4834714,0.00022314,7]
[366081773,1750055434276,-151.0,0.00022314,7]
[366081774,1750055434286,-157.8951436,0.00022316,2]
[366081775,1750055434296,-160.0,0.00022391,2]
[366081776,1750055434307,-816.23,0.000224,7]
[366081777,1750055434317,-430.4834714,0.00022417,7]
[366081778,1750055434327,-460.0,0.00022465,4]
[366081779,1750055434336,-460.0,0.00022465,4]
[366081780,1750055434346,-151.0,0.00022465,7]
[366081781,1750055434356,-460.0,0.00022465,2]
[366081782,1750055434377,-152.977418,0.00022465,7]
[366081783,1750055434388,-460.0,0.00022465,4]
[366081784,1750055434399,-460.0,0.00022465,4]
[366081785,1750055434410,-460.0,0.00022465,4]
[366081786,1750055434421,-460.0,0.00022465,4]
[366081787,1750055434431,-151.0,0.00022465,7]
[366081788,1750055434441,-151.0,0.00022465,7]
[366081789,1750055434451,-151.0,0.00022465,7]
[366081790,1750055434461,-151.0,0.00022465,7]
[366081791,1750055434472,-460.0,0.00022465,4]
[366081792,1750055434482,-437.454304,0.00022465,7]
[366081793,1750055434493,-437.454304,0.00022465,7]
[366081794,1750055434503,-460.0,0.00022465,4]
[366081795,1750055434513,-460.0,0.00022465,4]
[366081796,1750055434523,-460.0,0.00022465,4]
[366081797,1750055434533,-460.0,0.00022465,4]
[366081798,1750055434543,-460.0,0.00022465,4]
[366081799,1750055434553,-151.0,0.00022465,7]
[366081800,1750055434563,-172.0,0.00022478,2]
[366081801,1750055434573,-151.0,0.00022478,7]
[366081802,1750055434583,-430.4834714,0.00022521,7]
[366081803,1750055434594,-308.8235049,0.00022538,2]
[366081804,1750055434603,-151.0,0.00022576,7]
[366081805,1750055434613,-220.88381,0.0002258,7]
[366081806,1750055434624,-220.88381,0.0002258,7]
[366081807,1750055434633,-1008.2556835,0.00022581,2]
[366081808,1750055434643,-192.52258843,0.00022581,2]
[366081809,1750055434653,-143.28855989,0.00022604,2]
[366081832,1750055438179,-500.0,0.00020691,2]
[366081833,1750055438190,-500.0,0.00020691,2]
[366081834,1750055438199,-500.0,0.00020691,2]
[366081835,1750055438209,-208.66271632,0.00020691,2]
[366081836,1750055438219,-152.47781057,0.00020691,2]
[366081837,1750055438229,-243.4287035,0.00020691,2]
[366081838,1750055438239,-479.01479149,0.00020691,2]
[366081839,1750055438249,-179.78060976,0.00020691,2]
[366081840,1750055438259,-500.0,0.00020691,2]
[366081841,1750055438269,-321.91560398,0.00020691,2]
[366081842,1750055438279,-24.71144011,0.00022604,2]
[366081843,1750055438290,-430.4834714,0.00022624,7]
[366081844,1750055438305,-151.0,0.00022661,7]
[366081845,1750055438315,-19.24353631,0.00022661,7]
[366081855,1750055438848,-143.16235769,0.00022661,7]
[366081856,1750055438859,-151.0,0.00022661,7]
[366081857,1750055438869,-151.0,0.00022661,7]
[366081858,1750055438879,-151.0,0.00022661,7]
[366081859,1750055438890,-151.0,0.00022661,7]
[366081860,1750055438899,-220.88381,0.00022661,7]
[366081861,1750055438909,-220.88381,0.00022661,7]
[366081862,1750055438919,-151.0,0.00022661,7]
[366081863,1750055438929,-151.0,0.00022661,7]
[366081864,1750055438939,-151.0,0.00022661,7]
[366081865,1750055438949,-151.0,0.00022661,7]
[366081866,1750055438959,-151.0,0.00022661,7]
[366081867,1750055438969,-151.0,0.00022661,7]
[366081868,1750055438980,-437.454304,0.00022661,7]
[366081869,1750055438989,-437.454304,0.00022661,7]
[366081870,1750055438999,-1047.95300373,0.00022661,2]
[366081871,1750055439012,-346.28610527,0.00022661,2]
[366081872,1750055439021,-1394.239109,0.00022661,2]
[366081873,1750055439033,-1394.239109,0.00022661,2]
[366081874,1750055439043,-1394.239109,0.00022661,2]
[366081875,1750055439053,-151.0,0.00022661,7]
[366081876,1750055439063,-16290.72702755,0.00022661,2]
[366081877,1750055439084,-500.0,0.00020691,2]
[366081878,1750055439095,-2053.96628476,0.00022661,2]
[366081879,1750055439107,-5906.13097217,0.00022661,2]
[366081880,1750055439117,-207.4,0.00022661,2]
[366081881,1750055439127,-453.92902783,0.00022677,2]
[366081885,1750055440478,-546.07097217,0.00022677,2]
[366081886,1750055440489,-442.82995944,0.00022677,2]
[366081887,1750055440499,-430.4834714,0.00022728,7]
[366081888,1750055440509,-168.0,0.00022733,2]
[366081889,1750055440519,-151.0,0.00022733,7]
[366081890,1750055440529,-151.0,0.00022733,7]
[366081891,1750055440539,-151.0,0.00022733,7]
[366081892,1750055440549,-460.0,0.00022739,4]
[366081893,1750055440560,-196.89930503,0.00022739,2]
[366082127,1750055443321,-303.81059378,0.00021436,2]
[366082460,1750055446271,-926.76940622,0.00021436,2]
[366082462,1750055446281,-263.10069497,0.00022739,2]
[366082465,1750055446292,-460.0,0.00022739,4]
[366082466,1750055446301,-460.0,0.00022739,4]
[366082468,1750055446312,-460.0,0.00022739,4]
[366082470,1750055446322,-460.0,0.00022739,4]
[366082473,1750055446332,-460.0,0.00022739,4]
[366082475,1750055446342,-460.0,0.00022739,4]
[366082477,1750055446352,-460.0,0.00022739,4]
[366082479,1750055446362,-430.4834714,0.00022831,8]
[366082481,1750055446372,-239.64954421,0.00022911,2]
[366082483,1750055446382,-430.4834714,0.00022934,8]
[366082485,1750055446391,-329.57539402,0.00023,2]
[366082487,1750055446401,-460.0,0.00023013,4]
[366082489,1750055446411,-460.0,0.00023013,2]
[366082491,1750055446421,-460.0,0.00023013,4]
[366082493,1750055446431,-460.0,0.00023013,4]
[366082495,1750055446441,-460.0,0.00023013,4]
[366082497,1750055446451,-460.0,0.00023013,4]
[366082499,1750055446461,-460.0,0.00023013,4]
[366082501,1750055446471,-460.0,0.00023013,4]
[366082503,1750055446481,-460.0,0.00023013,4]
[366082505,1750055446492,-430.4834714,0.00023038,8]
[366082507,1750055446502,-430.4834714,0.00023141,8]
[366082509,1750055446512,-157.8951436,0.00023177,2]
[366082511,1750055446522,-1004.14328316,0.00023225,2]
[366082513,1750055446533,-430.4834714,0.00023245,8]
[366082515,1750055446542,-308.8235049,0.00023259,2]
[366082517,1750055446552,-460.0,0.00023287,4]
[366082519,1750055446562,-460.0,0.00023287,2]
[366082521,1750055446571,-460.0,0.00023287,4]
[366082523,1750055446581,-460.0,0.00023287,4]
[366082525,1750055446589,-460.0,0.00023287,4]
[366082527,1750055446599,-460.0,0.00023287,4]
[366082529,1750055446609,-460.0,0.00023287,4]
[366082531,1750055446618,-460.0,0.00023287,4]
[366082533,1750055446628,-460.0,0.00023287,4]
[366082535,1750055446638,-430.4834714,0.00023348,9]
[366082537,1750055446647,-2461.15,0.00023384,2]
[366082539,1750055446657,-430.4834714,0.00023452,9]
[366082541,1750055446666,-3000.0,0.000235,2]
[366082543,1750055446676,-3000.0,0.0002351,2]
[366082544,1750055446685,-185.244448,0.0002351,7]
[366082545,1750055446696,-151.0,0.0002351,7]
[366082546,1750055446709,-151.0,0.0002351,7]
[366082547,1750055446719,-220.88381,0.0002351,7]
[366082548,1750055446728,-220.88381,0.0002351,7]
[366082549,1750055446738,-151.0,0.0002351,7]
[366082550,1750055446748,-845.4146947,0.0002351,7]
[366082551,1750055446758,-151.0,0.0002351,7]
[366082552,1750055446767,-151.0,0.0002351,7]
[366082553,1750055446777,-151.0,0.0002351,7]
[366082554,1750055446787,-151.0,0.0002351,7]
[366082555,1750055446797,-437.454304,0.0002351,7]
[366082556,1750055446806,-437.454304,0.0002351,7]
[366082557,1750055446816,-1394.239109,0.0002351,2]
[366082558,1750055446826,-1394.239109,0.0002351,2]
[366082559,1750055446837,-151.0,0.0002351,7]
[366082560,1750055446845,-3000.0,0.0002352,2]
[366082562,1750055446855,-3000.0,0.0002353,2]
[366082563,1750055446865,-151.0,0.0002353,7]
[366082564,1750055446874,-151.0,0.0002353,7]
[366082565,1750055446883,-151.0,0.0002353,7]
[366082567,1750055446893,-1917.79628939,0.0002354,2]
[366082571,1750055446922,-766.64266562,0.0002354,2]
[366082573,1750055446934,-315.56104499,0.0002354,2]
[366082575,1750055446943,-568.86,0.0002354,10]
[366082577,1750055446952,-249.21171465,0.0002355,2]
[366083756,1750055746686,333.0,0.0002,2]
[366083764,1750056003153,4712.05169907,0.0002,2]
[366083767,1750056035862,195.12821183,0.0002,2]
[366083769,1750056044682,2719.60707726,0.0002,2]
[366083770,1750056044707,2280.39292274,0.0002,2]
[366083772,1750056060113,5000.0,0.0002,2]
[366083773,1750056077059,1195.19291059,0.0002,2]
[366083774,1750056077085,3804.80708941,0.0002,2]
[366083775,1750056088061,174.21128,0.00019967,2]
[366083776,1750056099769,3437.54777691,0.0002,2]
[366083777,1750056099799,1059.01968701,0.00019963,2]
[366083778,1750056099822,474.23508139,0.00019963,2]
[366083780,1750056146845,5259.5704631,0.0001986,2]
[366083781,1750056153950,227.59375679,0.0002,2]
[366083783,1750056193150,2514.18653205,0.0002,2]
[366083784,1750056193177,1120.3478479,0.0002,2]
[366083785,1750056208957,5000.0,0.0002,2]
[366083786,1750056232611,2355.23798543,0.00019808,2]
[366083787,1750056232635,7563.98027817,0.00019808,2]
[366083788,1750056235003,184.975326,0.00019808,2]
[366083789,1750056280480,179.78425889,0.00019917,2]
[366083790,1750056303096,546.84597027,0.0002,2]
[366083791,1750056303123,3240.77467262,0.0002,2]
[366083792,1750056311971,284.583381,0.00019701,2]
[366083793,1750056313550,4950.22777971,0.0002,2]
[366083794,1750056394792,3488.53482548,0.000189,2]
[366083797,1750056503358,5000.0,0.00019,2]
[366083804,1750056545934,2030.1887686,0.00018351,2]
[366083805,1750056567985,97.60323601,0.00016941,2]
[366083806,1750056568011,4788.79563322,0.00016941,2]
[366083807,1750056573360,-564.8487339,0.00019043,2]
[366083808,1750056573384,-300.0,0.00019079,2]
[366083809,1750056573409,-4035.1512661,0.0001908,2]
[366083818,1750056624467,301.06611918,0.00018979,3]
[366083830,1750056632747,-300.0,0.00019079,2]
[366083831,1750056632757,-300.0,0.00019079,2]
[366083832,1750056632767,-300.0,0.00019079,2]
[366083833,1750056632778,-300.0,0.00019079,2]
[366083834,1750056632787,-1200.0,0.00019079,2]
[366083835,1750056632797,-2986.5,0.0001908,2]
[366083836,1750056632827,369.83822417,0.00018979,2]
[366083837,1750056632840,-5368.19905479,0.0001908,2]
[366083840,1750056634332,369.83822416,0.00018995,2]
[366083898,1750056639060,-369.83822416,0.00019011,2]
[366083900,1750056639070,-369.83822416,0.00019027,2]
[366083903,1750056639080,-236.89381836,0.00019043,2]
[366083905,1750056639092,-132.9444058,0.00019043,2]
[366083907,1750056639102,-297.30898017,0.00019079,2]
[366083917,1750056639196,-92.71609655,0.00019079,2]
[366083920,1750056639206,-500.0,0.00019079,2]
[366083923,1750056639216,-500.0,0.00019079,2]
[366083926,1750056639225,-500.0,0.00019079,2]
[366083929,1750056639236,-500.0,0.00019079,2]
[366083933,1750056639247,-290.81737126,0.00019079,2]
[366083936,1750056639257,-500.0,0.00019079,2]
[366083939,1750056639267,-500.0,0.00019079,2]
[366083941,1750056639276,-500.0,0.00019079,2]
[366083943,1750056639286,-467.470295,0.00019079,2]
[366083945,1750056639298,-500.0,0.00019079,2]
[366083947,1750056639308,-500.0,0.00019079,2]
[366083950,1750056639318,-500.0,0.00019079,2]
[366083951,1750056639327,-500.0,0.00019079,2]
[366083954,1750056639337,-500.0,0.00019079,2]
[366083955,1750056639347,-500.0,0.00019079,2]
[366083958,1750056639356,-500.0,0.00019079,2]
[366083960,1750056639366,-500.0,0.00019079,2]
[366083962,1750056639375,-265.32105844,0.00019079,2]
[366083964,1750056639385,-500.0,0.00019079,2]
[366083966,1750056639395,-500.0,0.00019079,2]
[366083968,1750056639404,-500.0,0.00019079,2]
[366083970,1750056639414,-500.0,0.00019079,2]
[366083972,1750056639423,-530.9360528,0.00019079,2]
[366083974,1750056639433,-262.24860329,0.00019079,2]
[366083976,1750056639443,-500.0,0.00019079,2]
[366083979,1750056639464,-300.0,0.00019079,2]
[366083981,1750056639475,-500.0,0.00019079,2]
[366083983,1750056639484,-500.0,0.00019079,2]
[366083985,1750056639494,-500.0,0.00019079,2]
[366083987,1750056639504,-500.0,0.00019079,2]
[366083989,1750056639514,-500.0,0.00019079,2]
[366083991,1750056639524,-500.0,0.00019079,2]
[366083993,1750056639534,-500.0,0.00019079,2]
[366083995,1750056639544,-500.0,0.00019079,2]
[366083997,1750056639553,-500.0,0.00019079,2]
[366083999,1750056639563,-296.13042273,0.00019079,2]
[366084001,1750056639573,-500.0,0.00019079,2]
[366084003,1750056639583,-500.0,0.00019079,2]
[366084005,1750056639592,-296.35099129,0.00019079,2]
[366084007,1750056639602,-500.0,0.00019079,2]
[366084009,1750056639612,-500.0,0.00019079,2]
[366084011,1750056639622,-500.0,0.00019079,2]
[366084013,1750056639632,-500.0,0.00019079,2]
[366084015,1750056639641,-500.0,0.00019079,2]
[366084017,1750056639652,-500.0,0.00019079,2]
[366084019,1750056639662,-500.0,0.00019079,2]
[366084021,1750056639672,-500.0,0.00019079,2]
[366084023,1750056639681,-500.0,0.00019079,2]
[366084025,1750056639691,-500.0,0.00019079,2]
[366084028,1750056639704,-500.0,0.00019079,2]
[366084030,1750056639713,-500.0,0.00019079,2]
[366084032,1750056639723,-500.0,0.00019079,2]
[366084034,1750056639733,-500.0,0.00019079,2]
[366084036,1750056639742,-500.0,0.00019079,2]
[366084038,1750056639752,-500.0,0.00019079,2]
[366084040,1750056639762,-500.0,0.00019079,2]
[366084042,1750056639773,-500.0,0.00019079,2]
[366084044,1750056639783,-500.0,0.00019079,2]
[366084046,1750056639794,-500.0,0.00019079,2]
[366084048,1750056639804,-500.0,0.00019079,2]
[366084050,1750056639815,-500.0,0.00019079,2]
[366084052,1750056639825,-500.0,0.00019079,2]
[366084054,1750056639836,-500.0,0.00019079,2]
[366084056,1750056639847,-500.0,0.00019079,2]
[366084072,1750056639979,-500.0,0.00019079,2]
[366084075,1750056640011,-500.0,0.00019079,2]
[366084077,1750056640022,-500.0,0.00019079,2]
[366084080,1750056640037,-500.0,0.00019079,2]
[366084082,1750056640048,-500.0,0.00019079,2]
[366084084,1750056640058,-500.0,0.00019079,2]
[366084086,1750056640069,-500.0,0.00019079,2]
[366084088,1750056640079,-500.0,0.00019079,2]
[366084090,1750056640089,-500.0,0.00019079,2]
[366084092,1750056640099,-500.0,0.00019079,2]
[366084094,1750056640109,-500.0,0.00019079,2]
[366084096,1750056640119,-500.0,0.00019079,2]
[366084098,1750056640129,-500.0,0.00019079,2]
[366084100,1750056640139,-500.0,0.00019079,2]
[366084102,1750056640149,-500.0,0.00019079,2]
[366084104,1750056640163,-500.0,0.00019079,2]
[366084106,1750056640172,-500.0,0.00019079,2]
[366084108,1750056640182,-500.0,0.00019079,2]
[366084110,1750056640193,-12510.14967911,0.0001908,2]
[366084112,1750056640203,-306.4356689,0.00019143,2]
[366084114,1750056640213,-500.0,0.00019178,2]
[366084116,1750056640223,-500.0,0.00019178,2]
[366084119,1750056640235,-500.0,0.00019178,2]
[366084121,1750056640246,-500.0,0.00019178,2]
[366084123,1750056640258,-285.49277245,0.00019178,2]
[366084125,1750056640268,-171.58960545,0.00019253,2]
[366084127,1750056640278,-330.457988,0.00019353,2]
[366084130,1750056640288,-668.6867505,0.00019359,2]
[366084132,1750056640298,-242.13514,0.00019443,2]
[366084135,1750056640308,-500.0,0.00019449,2]
[366084137,1750056640319,-1650.07565216,0.00019449,2]
[366084139,1750056640329,-500.0,0.00019449,2]
[366084141,1750056640339,-1650.07565216,0.00019449,2]
[366084143,1750056640348,-500.0,0.00019449,2]
[366084145,1750056640358,-1650.07565216,0.00019449,2]
[366084147,1750056640368,-1650.07565216,0.00019449,2]
[366084149,1750056640378,-500.0,0.00019449,2]
[366084151,1750056640388,-1650.07565216,0.00019449,2]
[366084153,1750056640398,-1650.07565216,0.00019449,2]
[366084155,1750056640408,-1650.07565216,0.00019449,2]
[366084157,1750056640418,-1650.07565216,0.00019449,2]
[366084159,1750056640427,-205.47250942,0.00019449,2]
[366084161,1750056640436,-1650.07565216,0.00019449,2]
[366084163,1750056640447,-1650.07565216,0.00019449,2]
[366084165,1750056640456,-1650.07565216,0.00019449,2]
[366084167,1750056640467,-1650.07565216,0.00019449,2]
[366084169,1750056640477,-1650.07565216,0.00019449,2]
[366084171,1750056640487,-1650.07565216,0.00019449,2]
[366084173,1750056640497,-242.13514,0.0001945,2]
[366084175,1750056640507,-50000.0,0.0001945,2]
[366084177,1750056640517,-233.23818009,0.0001954,2]
[366084179,1750056640526,-205.44251507,0.00019952,2]
[366084181,1750056640536,-201.3060297,0.00019952,2]
[366084183,1750056640545,-2002.0,0.0002,2]
[366084185,1750056640556,-205.22153588,0.00020114,2]
[366084187,1750056640566,-240.231593,0.00020144,2]
[366084189,1750056640576,-172.16186288,0.00020152,2]
[366084191,1750056640586,-166.0,0.00020274,2]
[366084193,1750056640595,-274.76736366,0.000204,3]
[366084195,1750056640606,-274.7673636,0.000204,3]
[366084197,1750056640615,-274.7673636,0.000204,3]
[366084199,1750056640625,-274.7673636,0.00020521,3]
[366084201,1750056640635,-160.0,0.00020581,2]
[366084203,1750056640645,-300.0,0.00020693,2]
[366084205,1750056640656,-1000.0,0.00020694,2]
[366084207,1750056640665,-274.7673636,0.00020728,3]
[366084210,1750056640677,-413.690078,0.00020767,2]
[366084212,1750056640687,-171.58960545,0.00020774,2]
[366084214,1750056640696,-420.0,0.00020795,2]
[366084216,1750056640706,-420.0,0.00020795,2]
[366084218,1750056640716,-420.0,0.00020795,2]
[366084220,1750056640725,-773.77,0.00020863,3]
[366084222,1750056640735,-501.21816141,0.00020873,2]
[366084224,1750056640746,-500.0,0.00020873,2]
[366084226,1750056640757,-500.0,0.00020873,2]
[366084228,1750056640767,-465.92405783,0.00020873,2]
[366084230,1750056640776,-500.88765153,0.00020873,2]
[366084232,1750056640786,-300.0,0.00020874,2]
[366084234,1750056640797,-151.0,0.00020874,2]
[366084236,1750056640807,-151.0,0.00020874,2]
[366084238,1750056640817,-151.0,0.00020874,2]
[366084240,1750056640827,-506.11053506,0.00020874,2]
[366084242,1750056640837,-151.0,0.00020875,2]
[366084244,1750056640847,-340.21186582,0.00020875,2]
[366084246,1750056640858,-1680.0,0.00020895,2]
[366084248,1750056640868,-274.7673636,0.00020934,4]
[366084250,1750056640877,-227.86350286,0.00020988,2]
[366084252,1750056640887,-156.587,0.00020988,2]
[366084254,1750056640897,-227.9,0.00021,2]
[366084256,1750056640907,-176.069,0.00021,2]
[366084258,1750056640917,-153.419863,0.00021001,2]
[366084261,1750056640927,-200.0,0.00021002,10]
[366084263,1750056640937,-200.0,0.00021002,10]
[366084265,1750056640947,-212.457258,0.00021002,10]
[366084267,1750056640958,-164.0,0.00021003,2]
[366084269,1750056640967,-151.0,0.00021003,2]
[366084271,1750056640978,-151.0,0.00021003,2]
[366084273,1750056640988,-2784.27534579,0.00021004,2]
[366084275,1750056640998,-356.801844,0.00021005,2]
[366084277,1750056641009,-152.76782904,0.00021043,2]
[366084279,1750056641019,-2486.6130242,0.00021063,2]
[366084281,1750056641029,-501.3127716,0.00021073,2]
[366084283,1750056641039,-500.0,0.00021073,2]
[366084285,1750056641050,-500.0,0.00021073,2]
[366084287,1750056641060,-906.78,0.000211,2]
[366084289,1750056641070,-274.7673636,0.00021141,4]
[366084291,1750056641080,-479.07022859,0.00021148,2]
[366084293,1750056641090,-1378.24,0.00021199,2]
[366084295,1750056641100,-274.7673636,0.00021348,5]
[366084297,1750056641110,-208.33782062,0.0002135,2]
[366084299,1750056641120,-1000.0,0.00021421,2]
[366084301,1750056641130,-501.0127259,0.00021421,2]
[366084303,1750056641141,-1041.08120244,0.00021422,2]
[366084305,1750056641153,-274.7673636,0.00021555,5]
[366084308,1750056641168,-521.70169869,0.00021597,2]
[366084310,1750056641179,-425.5250504,0.00021621,2]
[366084312,1750056641189,-505.94149795,0.0002164,2]
[366084314,1750056641198,-306.53721605,0.0002164,2]
[366084315,1750056641208,-500.0,0.0002164,2]
[366084318,1750056641219,-620.11797295,0.0002164,2]
[366084320,1750056641229,-500.0,0.00021697,2]
[366084321,1750056641238,-500.0,0.00021697,2]
[366084324,1750056641249,-246.31278831,0.00021697,2]
[366084325,1750056641259,-500.0,0.00021697,2]
[366084327,1750056641269,-1000.0,0.000217,2]
[366084329,1750056641279,-540.27721509,0.000217,2]
[366084331,1750056641289,-160.0,0.000217,2]
[366084333,1750056641299,-501.77823289,0.00021707,2]
[366084335,1750056641309,-274.7673636,0.00021762,5]
[366084337,1750056641319,-160.0,0.00021821,2]
[366084340,1750056641329,-845.4146947,0.00021823,2]
[366084342,1750056641339,-292.36537,0.00021916,2]
[366084344,1750056641350,-153.577941,0.00021917,2]
[366084346,1750056641360,-152.913812,0.00021917,2]
[366084348,1750056641371,-199.14533658,0.00021917,4]
[366084350,1750056641381,-208.62918319,0.00021917,4]